[Event "Titled Tuesday Blitz May 4 2021"]
[White "Janaszak, Dawid"]
[Black "Ozen, Bahadir"]
[WhiteFideId "1119206"]
[BlackFideId "6337058"]
[WhiteElo "2332"]
[BlackElo "2503"]
[Result "0-1"]
[Round "09"]
[TimeControl "180+1"]
[Date "2021.05.04"]
[WhiteClock "0:00:30"]
[BlackClock "0:00:45"]

1. e4 {[%clk 0:03:00]}  g6 {[%clk 0:03:00]} 2. Nc3 {[%clk 0:02:58]}  Bg7 {[%clk 0:02:59]} 3. d4 {[%clk 0:02:58]}  d6 {[%clk 0:02:58]} 4. Bg5 {[%clk 0:02:57]}  a6 {[%clk 0:02:55]} 5. f4 {[%clk 0:02:55]}  b5 {[%clk 0:02:54]} 6. Nf3 {[%clk 0:02:53]}  Bb7 {[%clk 0:02:51]} 7. Bd3 {[%clk 0:02:53]}  Nd7 {[%clk 0:02:39]} 8. e5 {[%clk 0:02:48]}  c5 {[%clk 0:02:30]} 9. exd6 {[%clk 0:02:27]}  cxd4 {[%clk 0:02:24]} 10. Ne4 {[%clk 0:02:19]}  Ngf6 {[%clk 0:02:23]} 11. Qe2 {[%clk 0:02:13]}  Kf8 {[%clk 0:01:27]} 12. O-O-O {[%clk 0:02:04]}  h6 {[%clk 0:01:18]} 13. Bh4 {[%clk 0:02:00]}  exd6 {[%clk 0:01:16]} 14. Nxd6 {[%clk 0:01:51]}  Bd5 {[%clk 0:01:16]} 15. Ne5 {[%clk 0:01:47]}  Nc5 {[%clk 0:01:10]} 16. Bxf6 {[%clk 0:00:46]}  Qxf6 {[%clk 0:00:59]} 17. Ne4 {[%clk 0:00:45]}  Bxe4 {[%clk 0:00:52]} 18. Bxe4 {[%clk 0:00:46]}  Qxf4+ {[%clk 0:00:49]} 19. Kb1 {[%clk 0:00:47]}  Qxe5 {[%clk 0:00:46]} 20. Rxd4 {[%clk 0:00:30]}  Qxd4 {[%clk 0:00:45]} 0-1


[Site "https://www.chess.com"]

[Event "Titled Tuesday Blitz May 4 2021"]
[White "Jarovinsky, Alexey"]
[Black "Triapishko, Alexandr"]
[WhiteFideId "14115131"]
[BlackFideId "14122286"]
[WhiteElo "2446"]
[BlackElo "2490"]
[Result "1-0"]
[Round "09"]
[TimeControl "180+1"]
[Date "2021.05.04"]
[WhiteClock "0:00:07"]
[BlackClock "0:00:01"]

1. Nc3 {[%clk 0:03:00]}  c5 {[%clk 0:02:39]} 2. e4 {[%clk 0:02:59]}  Nc6 {[%clk 0:02:37]} 3. Bb5 {[%clk 0:02:58]}  g6 {[%clk 0:02:34]} 4. Bxc6 {[%clk 0:02:55]}  bxc6 {[%clk 0:02:30]} 5. d3 {[%clk 0:02:56]}  Bg7 {[%clk 0:02:30]} 6. Bd2 {[%clk 0:02:52]}  d6 {[%clk 0:02:19]} 7. Qc1 {[%clk 0:02:47]}  Rb8 {[%clk 0:02:04]} 8. b3 {[%clk 0:02:42]}  f5 {[%clk 0:01:55]} 9. Nge2 {[%clk 0:02:40]}  Nf6 {[%clk 0:01:52]} 10. Bh6 {[%clk 0:02:36]}  O-O {[%clk 0:01:52]} 11. Bxg7 {[%clk 0:02:34]}  Kxg7 {[%clk 0:01:53]} 12. O-O {[%clk 0:02:34]}  e5 {[%clk 0:01:27]} 13. f4 {[%clk 0:02:18]}  Qe7 {[%clk 0:01:22]} 14. exf5 {[%clk 0:01:59]}  Bxf5 {[%clk 0:01:19]} 15. Ng3 {[%clk 0:01:59]}  Bd7 {[%clk 0:01:10]} 16. Re1 {[%clk 0:01:46]}  Nd5 {[%clk 0:01:02]} 17. Nxd5 {[%clk 0:01:36]}  cxd5 {[%clk 0:01:03]} 18. Qe3 {[%clk 0:01:25]}  d4 {[%clk 0:00:51]} 19. Qe4 {[%clk 0:01:21]}  Be6 {[%clk 0:00:49]} 20. fxe5 {[%clk 0:01:20]}  d5 {[%clk 0:00:49]} 21. Qe2 {[%clk 0:01:15]}  Qg5 {[%clk 0:00:46]} 22. Rad1 {[%clk 0:00:56]}  Rb7 {[%clk 0:00:19]} 23. Qd2 {[%clk 0:00:54]}  Qg4 {[%clk 0:00:13]} 24. Qe2 {[%clk 0:00:50]}  Qg5 {[%clk 0:00:08]} 25. Qd2 {[%clk 0:00:50]}  Qg4 {[%clk 0:00:07]} 26. Rf1 {[%clk 0:00:47]}  Rbf7 {[%clk 0:00:05]} 27. Rxf7+ {[%clk 0:00:46]}  Rxf7 {[%clk 0:00:06]} 28. Rf1 {[%clk 0:00:46]}  Rxf1+ {[%clk 0:00:06]} 29. Kxf1 {[%clk 0:00:42]}  h5 {[%clk 0:00:05]} 30. Qe2 {[%clk 0:00:36]}  Qf4+ {[%clk 0:00:05]} 31. Kg1 {[%clk 0:00:33]}  h4 {[%clk 0:00:04]} 32. Nf1 {[%clk 0:00:32]}  h3 {[%clk 0:00:03]} 33. g3 {[%clk 0:00:27]}  Qf5 {[%clk 0:00:03]} 34. Nd2 {[%clk 0:00:25]}  Qg5 {[%clk 0:00:03]} 35. Kf2 {[%clk 0:00:21]}  a5 {[%clk 0:00:03]} 36. Nf3 {[%clk 0:00:18]}  Qc1 {[%clk 0:00:02]} 37. Qd2 {[%clk 0:00:15]}  Qh1 {[%clk 0:00:02]} 38. Qf4 {[%clk 0:00:14]}  Qg2+ {[%clk 0:00:02]} 39. Ke1 {[%clk 0:00:14]}  Bf5 {[%clk 0:00:02]} 40. e6 {[%clk 0:00:11]}  Qxc2 {[%clk 0:00:02]} 41. Qe5+ {[%clk 0:00:10]}  Kh7 {[%clk 0:00:01]} 42. e7 {[%clk 0:00:09]}  Qc3+ {[%clk 0:00:01]} 43. Kf2 {[%clk 0:00:08]}  Qc2+ {[%clk 0:00:01]} 44. Ke1 {[%clk 0:00:07]}  Qc3+ {[%clk 0:00:01]} 45. Nd2 {[%clk 0:00:07]} 1-0


[Site "https://www.chess.com"]

[Event "Titled Tuesday Blitz May 4 2021"]
[White "Jary, Sergey"]
[Black "Grineva, Marianna"]
[WhiteFideId "14110350"]
[BlackFideId "14102013"]
[WhiteElo "2260"]
[BlackElo "1925"]
[Result "1-0"]
[Round "09"]
[TimeControl "180+1"]
[Date "2021.05.04"]
[WhiteClock "0:01:33"]
[BlackClock "0:00:05"]

1. d4 {[%clk 0:03:00]}  Nf6 {[%clk 0:02:54]} 2. g3 {[%clk 0:02:59]}  d6 {[%clk 0:02:54]} 3. Bg2 {[%clk 0:02:58]}  Nbd7 {[%clk 0:02:55]} 4. e4 {[%clk 0:02:58]}  c6 {[%clk 0:02:55]} 5. Ne2 {[%clk 0:02:58]}  g6 {[%clk 0:02:55]} 6. O-O {[%clk 0:02:57]}  Bg7 {[%clk 0:02:55]} 7. b4 {[%clk 0:02:58]}  O-O {[%clk 0:02:56]} 8. a4 {[%clk 0:02:58]}  e5 {[%clk 0:02:55]} 9. Bb2 {[%clk 0:02:57]}  Qb6 {[%clk 0:02:46]} 10. c3 {[%clk 0:02:55]}  exd4 {[%clk 0:02:42]} 11. a5 {[%clk 0:02:55]}  Qc7 {[%clk 0:02:38]} 12. cxd4 {[%clk 0:02:54]}  Re8 {[%clk 0:02:38]} 13. Nd2 {[%clk 0:02:53]}  Nf8 {[%clk 0:02:35]} 14. Rc1 {[%clk 0:02:53]}  Bg4 {[%clk 0:02:23]} 15. f3 {[%clk 0:02:51]}  Bd7 {[%clk 0:02:21]} 16. d5 {[%clk 0:02:50]}  c5 {[%clk 0:02:12]} 17. bxc5 {[%clk 0:02:47]}  dxc5 {[%clk 0:02:06]} 18. Nc4 {[%clk 0:02:46]}  Bb5 {[%clk 0:02:05]} 19. d6 {[%clk 0:02:44]}  Qc6 {[%clk 0:01:58]} 20. e5 {[%clk 0:02:43]}  N6d7 {[%clk 0:01:52]} 21. f4 {[%clk 0:02:41]}  Qa6 {[%clk 0:01:52]} 22. Qb3 {[%clk 0:02:41]}  Ne6 {[%clk 0:01:46]} 23. Rfd1 {[%clk 0:02:40]}  Rac8 {[%clk 0:01:41]} 24. Bd5 {[%clk 0:02:39]}  Nb8 {[%clk 0:01:24]} 25. Nc3 {[%clk 0:02:37]}  Bc6 {[%clk 0:01:18]} 26. Ne4 {[%clk 0:02:33]}  Bxd5 {[%clk 0:01:14]} 27. Rxd5 {[%clk 0:02:32]}  Nd7 {[%clk 0:01:12]} 28. Qa4 {[%clk 0:02:26]}  Red8 {[%clk 0:01:09]} 29. Na3 {[%clk 0:02:23]}  b6 {[%clk 0:00:58]} 30. Qb5 {[%clk 0:02:22]}  Qb7 {[%clk 0:00:54]} 31. Rcd1 {[%clk 0:02:21]}  a6 {[%clk 0:00:54]} 32. Qb3 {[%clk 0:02:19]}  b5 {[%clk 0:00:53]} 33. Nc4 {[%clk 0:02:19]}  Nd4 {[%clk 0:00:48]} 34. R1xd4 {[%clk 0:02:10]}  cxd4 {[%clk 0:00:47]} 35. Ncd2 {[%clk 0:02:10]}  Qc6 {[%clk 0:00:30]} 36. Bxd4 {[%clk 0:02:06]}  Qc2 {[%clk 0:00:19]} 37. Qxc2 {[%clk 0:02:05]}  Rxc2 {[%clk 0:00:20]} 38. Kf2 {[%clk 0:02:04]}  Ra2 {[%clk 0:00:20]} 39. Bc3 {[%clk 0:02:03]}  Rc8 {[%clk 0:00:20]} 40. Bb4 {[%clk 0:02:03]}  Rc4 {[%clk 0:00:19]} 41. Nc3 {[%clk 0:01:56]}  Rc2 {[%clk 0:00:17]} 42. Nb1 {[%clk 0:01:53]}  Rxb4 {[%clk 0:00:17]} 43. Ke3 {[%clk 0:01:52]}  Rbb2 {[%clk 0:00:17]} 44. Kd3 {[%clk 0:01:52]}  Ra2 {[%clk 0:00:17]} 45. Nb3 {[%clk 0:01:50]}  Rcb2 {[%clk 0:00:16]} 46. N1d2 {[%clk 0:01:47]}  Bf8 {[%clk 0:00:15]} 47. g4 {[%clk 0:01:46]}  Ra3 {[%clk 0:00:14]} 48. Kc3 {[%clk 0:01:46]}  Rba2 {[%clk 0:00:15]} 49. f5 {[%clk 0:01:45]}  gxf5 {[%clk 0:00:14]} 50. gxf5 {[%clk 0:01:44]}  Ra4 {[%clk 0:00:13]} 51. e6 {[%clk 0:01:42]}  fxe6 {[%clk 0:00:13]} 52. fxe6 {[%clk 0:01:42]}  Nf6 {[%clk 0:00:13]} 53. Rg5+ {[%clk 0:01:42]}  Bg7 {[%clk 0:00:12]} 54. d7 {[%clk 0:01:41]}  Rxd2 {[%clk 0:00:09]} 55. Rxg7+ {[%clk 0:01:37]}  Kxg7 {[%clk 0:00:09]} 56. Nxd2 {[%clk 0:01:37]}  Nxd7 {[%clk 0:00:08]} 57. exd7 {[%clk 0:01:36]}  Ra3+ {[%clk 0:00:08]} 58. Nb3 {[%clk 0:01:35]}  b4+ {[%clk 0:00:07]} 59. Kxb4 {[%clk 0:01:34]}  Ra2 {[%clk 0:00:06]} 60. d8=Q {[%clk 0:01:33]}  Kg6 {[%clk 0:00:05]} 1-0


[Site "https://www.chess.com"]

[Event "Titled Tuesday Blitz May 4 2021"]
[White "Jumabayev, Rinat"]
[Black "Papasimakopoulos, Alexandros"]
[WhiteFideId "13702661"]
[BlackFideId "4244125"]
[WhiteElo "2535"]
[BlackElo "2352"]
[Result "1-0"]
[Round "09"]
[TimeControl "180+1"]
[Date "2021.05.04"]
[WhiteClock "0:01:14"]
[BlackClock "0:00:35"]

1. d4 {[%clk 0:03:00]}  e6 {[%clk 0:02:59]} 2. c4 {[%clk 0:02:58]}  Nf6 {[%clk 0:02:59]} 3. Nc3 {[%clk 0:02:59]}  Bb4 {[%clk 0:02:59]} 4. e3 {[%clk 0:02:58]}  O-O {[%clk 0:02:58]} 5. Ne2 {[%clk 0:02:58]}  c6 {[%clk 0:02:58]} 6. a3 {[%clk 0:02:58]}  Ba5 {[%clk 0:02:59]} 7. Ng3 {[%clk 0:02:57]}  Bc7 {[%clk 0:02:52]} 8. Bd3 {[%clk 0:02:57]}  d5 {[%clk 0:02:39]} 9. O-O {[%clk 0:02:57]}  Re8 {[%clk 0:02:37]} 10. Qc2 {[%clk 0:02:39]}  e5 {[%clk 0:02:32]} 11. cxd5 {[%clk 0:02:37]}  exd4 {[%clk 0:02:24]} 12. exd4 {[%clk 0:02:35]}  cxd5 {[%clk 0:02:20]} 13. Bg5 {[%clk 0:02:35]}  Be6 {[%clk 0:02:14]} 14. Bxh7+ {[%clk 0:02:32]}  Kf8 {[%clk 0:02:13]} 15. Bf5 {[%clk 0:02:30]}  Nc6 {[%clk 0:02:11]} 16. Rad1 {[%clk 0:02:31]}  Rc8 {[%clk 0:02:04]} 17. Nh5 {[%clk 0:02:22]}  Qd7 {[%clk 0:01:49]} 18. Bxf6 {[%clk 0:02:00]}  Bxf5 {[%clk 0:01:49]} 19. Bxg7+ {[%clk 0:02:00]}  Kg8 {[%clk 0:01:49]} 20. Qd2 {[%clk 0:01:50]}  Qd6 {[%clk 0:01:40]} 21. Ng3 {[%clk 0:01:47]}  Bh7 {[%clk 0:01:35]} 22. Nb5 {[%clk 0:01:35]}  Qg6 {[%clk 0:01:22]} 23. Nxc7 {[%clk 0:01:34]}  Rxc7 {[%clk 0:01:21]} 24. Bh6 {[%clk 0:01:34]}  Rce7 {[%clk 0:01:14]} 25. Be3 {[%clk 0:01:30]}  Qg4 {[%clk 0:01:10]} 26. b4 {[%clk 0:01:25]}  a6 {[%clk 0:01:06]} 27. a4 {[%clk 0:01:22]}  Na7 {[%clk 0:01:02]} 28. Rc1 {[%clk 0:01:21]}  Nc8 {[%clk 0:01:01]} 29. Rc5 {[%clk 0:01:20]}  Nb6 {[%clk 0:01:00]} 30. Bg5 {[%clk 0:01:16]}  Re6 {[%clk 0:00:48]} 31. h3 {[%clk 0:01:15]}  Re2 {[%clk 0:00:35]} 32. hxg4 {[%clk 0:01:14]} 1-0


[Site "https://www.chess.com"]

[Event "Titled Tuesday Blitz May 4 2021"]
[White "Kabanov, Nikolai"]
[Black "Von Buelow, Georg"]
[WhiteFideId "4127820"]
[BlackFideId "4620658"]
[WhiteElo "2376"]
[BlackElo "2216"]
[Result "1-0"]
[Round "09"]
[TimeControl "180+1"]
[Date "2021.05.04"]
[WhiteClock "0:00:02"]
[BlackClock "0:00:01"]

1. e4 {[%clk 0:03:00]}  c5 {[%clk 0:02:46]} 2. Nf3 {[%clk 0:02:58]}  d6 {[%clk 0:02:41]} 3. d4 {[%clk 0:02:59]}  cxd4 {[%clk 0:02:34]} 4. Nxd4 {[%clk 0:03:00]}  Nf6 {[%clk 0:02:34]} 5. Nc3 {[%clk 0:03:00]}  a6 {[%clk 0:02:29]} 6. a4 {[%clk 0:02:53]}  e6 {[%clk 0:02:28]} 7. Be2 {[%clk 0:02:48]}  Nc6 {[%clk 0:02:27]} 8. O-O {[%clk 0:02:47]}  Be7 {[%clk 0:02:27]} 9. b3 {[%clk 0:02:42]}  O-O {[%clk 0:02:23]} 10. Bb2 {[%clk 0:02:43]}  Qc7 {[%clk 0:02:20]} 11. Re1 {[%clk 0:02:37]}  Nxd4 {[%clk 0:02:05]} 12. Qxd4 {[%clk 0:02:36]}  b6 {[%clk 0:02:05]} 13. Bf3 {[%clk 0:02:32]}  Bb7 {[%clk 0:02:04]} 14. Qd3 {[%clk 0:02:27]}  Rfd8 {[%clk 0:02:00]} 15. Rad1 {[%clk 0:02:22]}  Rac8 {[%clk 0:01:59]} 16. Re2 {[%clk 0:02:09]}  Nd7 {[%clk 0:01:56]} 17. Qe3 {[%clk 0:01:59]}  Bf6 {[%clk 0:01:47]} 18. Red2 {[%clk 0:01:07]}  Bxc3 {[%clk 0:01:15]} 19. Bxc3 {[%clk 0:01:08]}  Qxc3 {[%clk 0:01:15]} 20. Qxc3 {[%clk 0:01:08]}  Rxc3 {[%clk 0:01:15]} 21. Rxd6 {[%clk 0:01:09]}  Rc7 {[%clk 0:01:14]} 22. Rxb6 {[%clk 0:01:03]}  Kf8 {[%clk 0:01:11]} 23. c4 {[%clk 0:00:53]}  Ke7 {[%clk 0:01:07]} 24. Rbd6 {[%clk 0:00:53]}  Rdc8 {[%clk 0:00:47]} 25. e5 {[%clk 0:00:43]}  Bxf3 {[%clk 0:00:43]} 26. gxf3 {[%clk 0:00:43]}  Nxe5 {[%clk 0:00:43]} 27. Rxa6 {[%clk 0:00:40]}  Nxf3+ {[%clk 0:00:42]} 28. Kg2 {[%clk 0:00:40]}  Nh4+ {[%clk 0:00:41]} 29. Kf1 {[%clk 0:00:35]}  Nf5 {[%clk 0:00:42]} 30. Rb6 {[%clk 0:00:29]}  h5 {[%clk 0:00:31]} 31. a5 {[%clk 0:00:28]}  Ra8 {[%clk 0:00:31]} 32. a6 {[%clk 0:00:26]}  Rca7 {[%clk 0:00:30]} 33. Ra1 {[%clk 0:00:25]}  Kd7 {[%clk 0:00:29]} 34. b4 {[%clk 0:00:20]}  Kc7 {[%clk 0:00:25]} 35. c5 {[%clk 0:00:20]}  Ne7 {[%clk 0:00:24]} 36. b5 {[%clk 0:00:19]}  g6 {[%clk 0:00:18]} 37. Rd6 {[%clk 0:00:18]}  Kc8 {[%clk 0:00:13]} 38. Rd3 {[%clk 0:00:09]}  Nd5 {[%clk 0:00:12]} 39. Rda3 {[%clk 0:00:07]}  Rc7 {[%clk 0:00:09]} 40. b6 {[%clk 0:00:05]}  Rxc5 {[%clk 0:00:07]} 41. b7+ {[%clk 0:00:06]}  Kb8 {[%clk 0:00:08]} 42. bxa8=Q+ {[%clk 0:00:05]}  Kxa8 {[%clk 0:00:09]} 43. a7 {[%clk 0:00:04]}  Rc7 {[%clk 0:00:08]} 44. Rf3 {[%clk 0:00:03]}  f5 {[%clk 0:00:05]} 45. Rb3 {[%clk 0:00:02]}  Rxa7 {[%clk 0:00:04]} 46. Rxa7+ {[%clk 0:00:02]}  Kxa7 {[%clk 0:00:05]} 47. Rb2 {[%clk 0:00:01]}  Ka6 {[%clk 0:00:04]} 48. Ke2 {[%clk 0:00:01]}  Ka7 {[%clk 0:00:04]} 49. Kf3 {[%clk 0:00:02]}  g5 {[%clk 0:00:04]} 50. h4 {[%clk 0:00:02]}  gxh4 {[%clk 0:00:03]} 51. Kg2 {[%clk 0:00:03]}  Nf4+ {[%clk 0:00:02]} 52. Kh2 {[%clk 0:00:03]}  Ka6 {[%clk 0:00:02]} 53. Rb3 {[%clk 0:00:02]}  Ka5 {[%clk 0:00:02]} 54. Re3 {[%clk 0:00:02]}  Ka4 {[%clk 0:00:01]} 55. Rf3 {[%clk 0:00:03]}  Ng6 {[%clk 0:00:01]} 56. Re3 {[%clk 0:00:02]} 1-0


[Site "https://www.chess.com"]

[Event "Titled Tuesday Blitz May 4 2021"]
[White "Kazakouski, Valery"]
[Black "Shapiro, David"]
[WhiteFideId "13507443"]
[BlackFideId "24133523"]
[WhiteElo "2546"]
[BlackElo "2261"]
[Result "0-1"]
[Round "09"]
[TimeControl "180+1"]
[Date "2021.05.04"]
[WhiteClock "0:00:04"]
[BlackClock "0:00:09"]

1. d4 {[%clk 0:03:00]}  d5 {[%clk 0:02:48]} 2. c4 {[%clk 0:03:00]}  e6 {[%clk 0:02:46]} 3. Nf3 {[%clk 0:03:00]}  Nf6 {[%clk 0:02:45]} 4. g3 {[%clk 0:03:00]}  Bb4+ {[%clk 0:02:45]} 5. Bd2 {[%clk 0:02:54]}  Be7 {[%clk 0:02:45]} 6. Bg2 {[%clk 0:02:54]}  O-O {[%clk 0:02:44]} 7. O-O {[%clk 0:02:54]}  Ne4 {[%clk 0:02:44]} 8. Qc2 {[%clk 0:02:52]}  Nd7 {[%clk 0:02:40]} 9. cxd5 {[%clk 0:02:43]}  exd5 {[%clk 0:02:41]} 10. Bf4 {[%clk 0:02:43]}  c6 {[%clk 0:02:35]} 11. Nc3 {[%clk 0:02:42]}  g5 {[%clk 0:02:31]} 12. Bc1 {[%clk 0:01:53]}  f5 {[%clk 0:02:30]} 13. b3 {[%clk 0:01:41]}  Bf6 {[%clk 0:02:23]} 14. e3 {[%clk 0:01:40]}  g4 {[%clk 0:02:18]} 15. Ne1 {[%clk 0:01:38]}  h5 {[%clk 0:02:19]} 16. Nd3 {[%clk 0:01:38]}  h4 {[%clk 0:02:16]} 17. Rd1 {[%clk 0:01:35]}  Rf7 {[%clk 0:02:11]} 18. Nf4 {[%clk 0:01:33]}  hxg3 {[%clk 0:02:11]} 19. hxg3 {[%clk 0:01:33]}  Rh7 {[%clk 0:02:08]} 20. a4 {[%clk 0:01:14]}  Nf8 {[%clk 0:02:06]} 21. Ba3 {[%clk 0:01:12]}  Ne6 {[%clk 0:02:06]} 22. Nxe4 {[%clk 0:00:54]}  fxe4 {[%clk 0:02:03]} 23. Nxe6 {[%clk 0:00:52]}  Bxe6 {[%clk 0:02:02]} 24. b4 {[%clk 0:00:50]}  Qe8 {[%clk 0:01:51]} 25. b5 {[%clk 0:00:38]}  Rc8 {[%clk 0:01:51]} 26. bxc6 {[%clk 0:00:30]}  bxc6 {[%clk 0:01:52]} 27. Rdb1 {[%clk 0:00:26]}  Qh5 {[%clk 0:01:51]} 28. Rb3 {[%clk 0:00:20]}  Qh2+ {[%clk 0:01:50]} 29. Kf1 {[%clk 0:00:20]}  Rf7 {[%clk 0:01:50]} 30. Rab1 {[%clk 0:00:19]}  Bh4 {[%clk 0:01:22]} 31. gxh4 {[%clk 0:00:13]}  g3 {[%clk 0:01:22]} 32. f4 {[%clk 0:00:13]}  Bh3 {[%clk 0:00:53]} 33. Rb8 {[%clk 0:00:09]}  Qh1+ {[%clk 0:00:52]} 34. Ke2 {[%clk 0:00:09]}  Qxg2+ {[%clk 0:00:52]} 35. Kd1 {[%clk 0:00:10]}  Qf1+ {[%clk 0:00:16]} 36. Kd2 {[%clk 0:00:10]}  g2 {[%clk 0:00:17]} 37. Rxc8+ {[%clk 0:00:09]}  Bxc8 {[%clk 0:00:17]} 38. Qd1 {[%clk 0:00:09]}  Qf2+ {[%clk 0:00:11]} 39. Kc3 {[%clk 0:00:10]}  Qxe3+ {[%clk 0:00:11]} 40. Kb2 {[%clk 0:00:09]}  Qf2+ {[%clk 0:00:10]} 41. Ka1 {[%clk 0:00:09]}  Qf3 {[%clk 0:00:09]} 42. Qg1 {[%clk 0:00:04]}  Qxa3# {[%clk 0:00:09]} 0-1


[Site "https://www.chess.com"]

[Event "Titled Tuesday Blitz May 4 2021"]
[White "Kett, Tim"]
[Black "Pesotskiy, Mikhail"]
[WhiteFideId "1801210"]
[BlackFideId "34164453"]
[WhiteElo "2098"]
[BlackElo "2052"]
[Result "0-1"]
[Round "09"]
[TimeControl "180+1"]
[Date "2021.05.04"]
[WhiteClock "0:00:01"]
[BlackClock "0:00:08"]

1. e4 {[%clk 0:03:00]}  e6 {[%clk 0:00:14]} 2. d4 {[%clk 0:02:58]}  d5 {[%clk 0:00:15]} 3. Nc3 {[%clk 0:02:57]}  Bb4 {[%clk 0:00:15]} 4. e5 {[%clk 0:02:56]}  c5 {[%clk 0:00:16]} 5. Qg4 {[%clk 0:02:56]}  Bxc3+ {[%clk 0:00:17]} 6. bxc3 {[%clk 0:02:55]}  Ne7 {[%clk 0:00:17]} 7. Qxg7 {[%clk 0:02:53]}  Rg8 {[%clk 0:00:18]} 8. Qxh7 {[%clk 0:02:53]}  Qa5 {[%clk 0:00:19]} 9. Bd2 {[%clk 0:02:51]}  Nbc6 {[%clk 0:00:19]} 10. Nf3 {[%clk 0:02:45]}  Bd7 {[%clk 0:00:20]} 11. h4 {[%clk 0:02:40]}  O-O-O {[%clk 0:00:19]} 12. Qxf7 {[%clk 0:02:35]}  Rdf8 {[%clk 0:00:19]} 13. Qh7 {[%clk 0:02:29]}  Nf5 {[%clk 0:00:18]} 14. h5 {[%clk 0:02:21]}  Qb6 {[%clk 0:00:17]} 15. h6 {[%clk 0:02:18]}  cxd4 {[%clk 0:00:17]} 16. Bd3 {[%clk 0:02:04]}  dxc3 {[%clk 0:00:17]} 17. Bxc3 {[%clk 0:01:56]}  Rxg2 {[%clk 0:00:17]} 18. O-O-O {[%clk 0:01:43]}  Rxf2 {[%clk 0:00:16]} 19. Bxf5 {[%clk 0:01:42]}  Rxf5 {[%clk 0:00:12]} 20. Nd4 {[%clk 0:01:04]}  Qc5 {[%clk 0:00:12]} 21. Qxf5 {[%clk 0:00:32]}  exf5 {[%clk 0:00:10]} 22. h7 {[%clk 0:00:21]}  Qxc3 {[%clk 0:00:10]} 23. h8=Q+ {[%clk 0:00:21]}  Nd8 {[%clk 0:00:11]} 24. Kb1 {[%clk 0:00:15]}  Ba4 {[%clk 0:00:11]} 25. Rc1 {[%clk 0:00:04]}  Qxd4 {[%clk 0:00:10]} 26. e6 {[%clk 0:00:02]}  Qxh8 {[%clk 0:00:07]} 27. Rxh8 {[%clk 0:00:01]}  Re2 {[%clk 0:00:08]} 0-1


[Site "https://www.chess.com"]

[Event "Titled Tuesday Blitz May 4 2021"]
[White "Kopjonkin, Kirill"]
[Black "Kraemer, Martin"]
[WhiteFideId "24140090"]
[BlackFideId "4671910"]
[WhiteElo "2224"]
[BlackElo "2482"]
[Result "1-0"]
[Round "09"]
[TimeControl "180+1"]
[Date "2021.05.04"]
[WhiteClock "0:00:07"]
[BlackClock "0:00:01"]

1. e4 {[%clk 0:03:00]}  e5 {[%clk 0:02:48]} 2. Nf3 {[%clk 0:03:00]}  Nc6 {[%clk 0:02:47]} 3. Bc4 {[%clk 0:03:00]}  Bc5 {[%clk 0:02:46]} 4. d3 {[%clk 0:03:01]}  Nf6 {[%clk 0:02:46]} 5. c3 {[%clk 0:03:02]}  O-O {[%clk 0:02:45]} 6. Nbd2 {[%clk 0:03:01]}  d6 {[%clk 0:02:44]} 7. O-O {[%clk 0:03:01]}  a6 {[%clk 0:02:43]} 8. Bb3 {[%clk 0:03:01]}  h6 {[%clk 0:02:37]} 9. h3 {[%clk 0:03:01]}  Re8 {[%clk 0:02:37]} 10. Re1 {[%clk 0:03:02]}  Be6 {[%clk 0:02:37]} 11. Bc2 {[%clk 0:03:01]}  d5 {[%clk 0:02:37]} 12. exd5 {[%clk 0:03:00]}  Qxd5 {[%clk 0:02:36]} 13. Nf1 {[%clk 0:02:53]}  Rad8 {[%clk 0:02:20]} 14. Ng3 {[%clk 0:02:53]}  Bf8 {[%clk 0:02:05]} 15. Qe2 {[%clk 0:02:43]}  g6 {[%clk 0:01:55]} 16. Ne4 {[%clk 0:02:26]}  Nxe4 {[%clk 0:01:42]} 17. dxe4 {[%clk 0:02:27]}  Qb5 {[%clk 0:01:37]} 18. Nd2 {[%clk 0:01:50]}  Qxe2 {[%clk 0:01:18]} 19. Rxe2 {[%clk 0:01:51]}  h5 {[%clk 0:01:17]} 20. Nb3 {[%clk 0:01:44]}  Bc4 {[%clk 0:01:16]} 21. Re1 {[%clk 0:01:43]}  f6 {[%clk 0:01:12]} 22. Be3 {[%clk 0:01:41]}  a5 {[%clk 0:01:08]} 23. Rad1 {[%clk 0:01:39]}  a4 {[%clk 0:01:06]} 24. Nc5 {[%clk 0:01:33]}  Bxc5 {[%clk 0:00:35]} 25. Bxc5 {[%clk 0:01:34]}  b5 {[%clk 0:00:33]} 26. b3 {[%clk 0:01:10]}  axb3 {[%clk 0:00:32]} 27. axb3 {[%clk 0:01:11]}  Be6 {[%clk 0:00:32]} 28. Kf1 {[%clk 0:01:02]}  Na5 {[%clk 0:00:31]} 29. Rb1 {[%clk 0:00:51]}  Rd2 {[%clk 0:00:29]} 30. Re2 {[%clk 0:00:52]}  Red8 {[%clk 0:00:24]} 31. Ke1 {[%clk 0:00:46]}  Rxe2+ {[%clk 0:00:23]} 32. Kxe2 {[%clk 0:00:47]}  Kf7 {[%clk 0:00:22]} 33. h4 {[%clk 0:00:42]}  Nb7 {[%clk 0:00:20]} 34. Be3 {[%clk 0:00:39]}  Ra8 {[%clk 0:00:20]} 35. Kd2 {[%clk 0:00:38]}  Ra2 {[%clk 0:00:19]} 36. Kc1 {[%clk 0:00:33]}  Nd6 {[%clk 0:00:19]} 37. Rb2 {[%clk 0:00:28]}  Ra1+ {[%clk 0:00:19]} 38. Rb1 {[%clk 0:00:28]}  Ra2 {[%clk 0:00:20]} 39. Rb2 {[%clk 0:00:29]}  Ra1+ {[%clk 0:00:19]} 40. Rb1 {[%clk 0:00:27]}  Ra8 {[%clk 0:00:20]} 41. Kb2 {[%clk 0:00:24]}  f5 {[%clk 0:00:20]} 42. exf5 {[%clk 0:00:22]}  Bxf5 {[%clk 0:00:20]} 43. Bxf5 {[%clk 0:00:17]}  gxf5 {[%clk 0:00:18]} 44. g3 {[%clk 0:00:16]}  Ke6 {[%clk 0:00:19]} 45. Re1 {[%clk 0:00:15]}  Kd5 {[%clk 0:00:18]} 46. Bg5 {[%clk 0:00:14]}  Ne4 {[%clk 0:00:17]} 47. Be3 {[%clk 0:00:14]}  c5 {[%clk 0:00:17]} 48. Rd1+ {[%clk 0:00:12]}  Ke6 {[%clk 0:00:18]} 49. f3 {[%clk 0:00:12]}  Nxg3 {[%clk 0:00:17]} 50. Bxc5 {[%clk 0:00:13]}  f4 {[%clk 0:00:14]} 51. b4 {[%clk 0:00:13]}  e4 {[%clk 0:00:13]} 52. fxe4 {[%clk 0:00:10]}  Nxe4 {[%clk 0:00:13]} 53. Bd4 {[%clk 0:00:10]}  Kf5 {[%clk 0:00:13]} 54. Rg1 {[%clk 0:00:10]}  f3 {[%clk 0:00:12]} 55. Rg7 {[%clk 0:00:10]}  Rf8 {[%clk 0:00:12]} 56. Rb7 {[%clk 0:00:05]}  Kg4 {[%clk 0:00:11]} 57. Rxb5 {[%clk 0:00:05]}  f2 {[%clk 0:00:11]} 58. Bxf2 {[%clk 0:00:04]}  Rxf2+ {[%clk 0:00:12]} 59. Kb3 {[%clk 0:00:05]}  Nd2+ {[%clk 0:00:11]} 60. Ka4 {[%clk 0:00:05]}  Kxh4 {[%clk 0:00:11]} 61. Rd5 {[%clk 0:00:02]}  Kg4 {[%clk 0:00:07]} 62. b5 {[%clk 0:00:03]}  Nc4 {[%clk 0:00:06]} 63. Rd4+ {[%clk 0:00:02]}  Rf4 {[%clk 0:00:07]} 64. Rxf4+ {[%clk 0:00:01]}  Kxf4 {[%clk 0:00:08]} 65. Kb4 {[%clk 0:00:02]}  Nd6 {[%clk 0:00:04]} 66. Kc5 {[%clk 0:00:02]}  Nb7+ {[%clk 0:00:02]} 67. Kc6 {[%clk 0:00:02]}  Nd8+ {[%clk 0:00:03]} 68. Kd7 {[%clk 0:00:01]}  Nb7 {[%clk 0:00:02]} 69. Kc6 {[%clk 0:00:02]}  Na5+ {[%clk 0:00:03]} 70. Kb6 {[%clk 0:00:02]}  Nb3 {[%clk 0:00:03]} 71. c4 {[%clk 0:00:02]}  h4 {[%clk 0:00:03]} 72. c5 {[%clk 0:00:03]}  h3 {[%clk 0:00:03]} 73. c6 {[%clk 0:00:03]}  h2 {[%clk 0:00:03]} 74. c7 {[%clk 0:00:04]}  h1=Q {[%clk 0:00:03]} 75. c8=Q {[%clk 0:00:05]}  Qg1+ {[%clk 0:00:03]} 76. Kb7 {[%clk 0:00:04]}  Nc5+ {[%clk 0:00:02]} 77. Kc6 {[%clk 0:00:05]}  Ne4 {[%clk 0:00:02]} 78. Qf8+ {[%clk 0:00:05]}  Ke3 {[%clk 0:00:02]} 79. b6 {[%clk 0:00:06]}  Qc1+ {[%clk 0:00:02]} 80. Kb7 {[%clk 0:00:06]}  Qc4 {[%clk 0:00:02]} 81. Qe8 {[%clk 0:00:05]}  Kd4 {[%clk 0:00:01]} 82. Qc6 {[%clk 0:00:06]}  Nc5+ {[%clk 0:00:01]} 83. Kc8 {[%clk 0:00:05]}  Qg8+ {[%clk 0:00:01]} 84. Kc7 {[%clk 0:00:06]}  Qf7+ {[%clk 0:00:01]} 85. Kb8 {[%clk 0:00:07]}  Qf4+ {[%clk 0:00:01]} 86. Qc7 {[%clk 0:00:06]}  Na6+ {[%clk 0:00:01]} 87. Kb7 {[%clk 0:00:07]} 1-0


[Site "https://www.chess.com"]